Workbook

Sheet DB (hidden)
D2: 项目类型
D3: 01铁路(不含城市轨道交通)
D4: 02公路
D5: 0201高速公路
D6: 0202一级公路
D7: 0203二级公路
D8: 0204农村公路
D9: 0299其他公路
D10: 03机场
D11: 04市政建设
D12: 0401轨道交通
D13: 0402道路
D14: 0403桥梁
D15: 0404公用事业
D16: 040401供水
D17: 040402供气
D18: 040403供热
D19: 040404供电
D20: 040405公交
D21: 040406污水处理
D22: 040407垃圾处理
D23: 0405地下管线
D24: 040501地下管廊
D25: 040599其他
D26: 0406停车场建设
D27: 0499其他
D28: 05土地储备
D29: 06保障性住房
D30: 0601廉租房
D31: 0602公共租赁住房
D32: 0603经济适用房
D33: 0604棚户区改造
D34: 0699其他
D35: 07生态建设和环境保护
D36: 0701污染防治
D37: 0702自然生态保护
D38: 0703能源综合利用
D39: 0799其他
D40: 08政权建设
D41: 0801党政办公场所建设
D42: 0802公共安全部门场所建设
D43: 0899其他
D44: 09教育
D45: 0901义务教育
D46: 0902普通高中
D47: 0903普通高校
D48: 0904职业教育
D49: 0905学龄前教育
D50: 0999其他
D51: 10科学
D52: 11文化
D53: 1101文化
D54: 1102文物
D55: 1103体育
D56: 1199其他
D57: 12医疗卫生
D58: 1201公立医院
D59: 1202城市社区卫生机构
D60: 1203公共卫生机构
D61: 1204乡镇卫生院
D62: 1299其他
D63: 13社会保障
D64: 1301就业服务机构
D65: 1302社会福利机构
D66: 1303残疾人事业服务机构
D67: 1304社会救助机构
D68: 1399其他
D69: 14粮油物资储备
D70: 15农林水利建设
D71: 1501农业及农村建设
D72: 150101易地扶贫搬迁
D73: 150102农村电网完善
D74: 150103现代农业示范项目
D75: 150104农村饮水安全
D76: 150105深度贫困地区基础设施建设
D77: 150199其他农村建设
D78: 1502林业建设
D79: 1503水利建设
D80: 1599其他
D81: 16港口
D82: 99其他
D86: 01一般公共服务部门 | J86: 01 | L86: =J86&K86 -> 01 | M86: 机关
D87: 0101 人大 | J87: 02 | L87: =J87&K87 -> 02 | M87: 事业单位
D88: 0102 政协 | J88: 02 | K88: 01 | L88: 0201 | M88: 全额拨款事业单位
D89: 0103 政府办公厅（室）及相关机构 | J89: 02 | K89: 02 | L89: 0202 | M89: 差额拨款事业单位
D90: 0104 发展与改革部门 | J90: 02 | K90: 03 | L90: 0203 | M90: 自收自支事业单位
D91: 0105 统计部门 | J91: 03 | L91: 03 | M91: 融资平台公司
D92: 0106 财政部门 | J92: 04 | L92: 04 | M92: 公用事业单位
D93: 0107 税收部门 | J93: 04 | K93: 01 | L93: 0401 | M93: 公用事业单位（事业）
D94: 0108 审计部门 | J94: 04 | K94: 02 | L94: 0402 | M94: 公用事业单位（企业）
D95: 0109 人力资源部门 | J95: 05 | L95: 05 | M95: 国有企业（不含融资平台公司）
D96: 0110 监察部门 | J96: 09 | L96: 09 | M96: 其他
D97: 0111 人口与计划生育部门 | J97: 09 | K97: 01 | L97: 0901 | M97: 企业（不含融资平台公司）（移到第5类）
D98: 0112 商贸部门
D99: 0113 知识产权部门
D100: 0114 工商行政管理部门
D101: 0115 质量技术监督与检验检疫部门
D102: 0116 民族事务管理部门
D103: 0117 宗教事务管理部门
D104: 0118 港澳台侨事务管理部门
D105: 0119 档案部门
D106: 0199 其他一般公共服务部门
D107: 02公共安全部门
D108: 0201 公安部门
D109: 0202 检察部门
D110: 0203 法院部门
D111: 0204 司法部门
D112: 0205 监狱部门
D113: 0206 劳教部门
D114: 0207 国家保密部门
D115: 0299 其他公共安全部门
D116: 03教育部门
D117: 04科学技术部门
D118: 05文化体育与传媒部门
D119: 0501 文化部门
D120: 0502 文物部门
D121: 0503 体育部门
D122: 0504 广播影视部门
D123: 0505 新闻出版部门
D124: 0599 其他文化体育与传媒部门
D125: 06社会保障和就业部门
D126: 0601 人力资源和社会保障部门
D127: 0602 民政部门
D128: 0699 其他社会保障和就业部门
D129: 07医疗卫生部门
D130: 0701 医疗卫生管理部门
D131: 0702 食品和药品监督管理部门
D132: 0799 其他医疗卫生部门
D133: 08节能环保部门
D134: 0801 环境保护管理部门
D135: 0802 能源管理部门
D136: 0899 其他节能环保部门
D137: 09城乡社区部门
D138: 10农林水部门
D139: 1001 农业部门
D140: 1002 林业部门
D141: 1003 水利部门
D142: 1004 扶贫部门
D143: 1099 其他农林水部门
D144: 11交通运输部门
D145: 1101 公路水路运输部门
D146: 1102 铁路运输部门
D147: 1103 邮政部门
D148: 1199 其他交通运输部门
D149: 12资源勘探电力信息等部门
D150: 1201 电力监管部门
D151: 1202 工业和信息产业监管部门
D152: 1203 安全生产监管部门
D153: 1204 国有资产监管部门
D154: 1299 其他资源勘探电力信息等部门
D155: 13商业服务业等部门
D156: 1301 商业流通管理部门
D157: 1302 旅游业管理部门
D158: 1399 其他商业服务业等部门
D159: 14金融监管部门
D160: 15国土资源部门
D161: 16粮油物资管理部门
D162: 17海洋气象等部门
D163: 1701 海洋管理部门
D164: 1702 测绘部门
D165: 1703 地震部门
D166: 1704 气象部门
D167: 99其他
D170: 01铁路(不含城市轨道交通)
D171: 03机场
D172: 04市政建设
D173: 0401轨道交通
D174: 0402道路
D175: 0403桥梁
D176: 0404公用事业
D177: 040401供水
D178: 040402供气
D179: 040403供热
D180: 040404供电
D181: 040405公交
D182: 040406污水处理
D183: 040407垃圾处理
D184: 0405地下管线
D185: 040501地下管廊
D186: 040599其他
D187: 0406停车场建设
D188: 0499其他
D189: 06保障性住房
D190: 0601廉租房
D191: 0602公共租赁住房
D192: 0603经济适用房
D193: 0604棚户区改造
D194: 0699其他
D195: 07生态建设和环境保护
D196: 0701污染防治
D197: 0702自然生态保护
D198: 0703能源综合利用
D199: 0799其他
D200: 08政权建设
D201: 0801党政办公场所建设
D202: 0802公共安全部门场所建设
D203: 0899其他
D204: 09教育
D205: 0901义务教育
D206: 0902普通高中
... 36 more rows

Sheet DB (2) (hidden)
D2: 项目类型
D3: 01铁路(不含城市轨道交通)
D4: 02公路
D5: 0201高速公路
D6: 0202一级公路
D7: 0203二级公路
D8: 0204农村公路
D9: 0299其他公路
D10: 03机场
D11: 04市政建设
D12: 0401轨道交通
D13: 0402道路
D14: 0403桥梁
D15: 0404公用事业
D16: 040401供水
D17: 040402供气
D18: 040403供热
D19: 040404供电
D20: 040405公交
D21: 040406污水处理
D22: 040407垃圾处理
D23: 0405地下管线
D24: 040501地下管廊
D25: 040599其他
D26: 0406停车场建设
D27: 0499其他
D28: 05土地储备
D29: 06保障性住房
D30: 0601廉租房
D31: 0602公共租赁住房
D32: 0603经济适用房
D33: 0604棚户区改造
D34: 0699其他
D35: 07生态建设和环境保护
D36: 0701污染防治
D37: 0702自然生态保护
D38: 0703能源综合利用
D39: 0799其他
D40: 08政权建设
D41: 0801党政办公场所建设
D42: 0802公共安全部门场所建设
D43: 0899其他
D44: 09教育
D45: 0901义务教育
D46: 0902普通高中
D47: 0903普通高校
D48: 0904职业教育
D49: 0905学龄前教育
D50: 0999其他
D51: 10科学
D52: 11文化
D53: 1101文化
D54: 1102文物
D55: 1103体育
D56: 1199其他
D57: 12医疗卫生
D58: 1201公立医院
D59: 1202城市社区卫生机构
D60: 1203公共卫生机构
D61: 1204乡镇卫生院
D62: 1299其他
D63: 13社会保障
D64: 1301就业服务机构
D65: 1302社会福利机构
D66: 1303残疾人事业服务机构
D67: 1304社会救助机构
D68: 1399其他
D69: 14粮油物资储备
D70: 15农林水利建设
D71: 1501农业及农村建设
D72: 150101易地扶贫搬迁
D73: 150102农村电网完善
D74: 150103现代农业示范项目
D75: 150104农村饮水安全
D76: 150105深度贫困地区基础设施建设
D77: 150199其他农村建设
D78: 1502林业建设
D79: 1503水利建设
D80: 1599其他
D81: 16港口
D82: 99其他
D86: 01一般公共服务部门 | J86: 01 | L86: =J86&K86 -> 01 | M86: 机关
D87: 0101 人大 | J87: 02 | L87: =J87&K87 -> 02 | M87: 事业单位
D88: 0102 政协 | J88: 02 | K88: 01 | L88: 0201 | M88: 全额拨款事业单位
D89: 0103 政府办公厅（室）及相关机构 | J89: 02 | K89: 02 | L89: 0202 | M89: 差额拨款事业单位
D90: 0104 发展与改革部门 | J90: 02 | K90: 03 | L90: 0203 | M90: 自收自支事业单位
D91: 0105 统计部门 | J91: 03 | L91: 03 | M91: 融资平台公司
D92: 0106 财政部门 | J92: 04 | L92: 04 | M92: 公用事业单位
D93: 0107 税收部门 | J93: 04 | K93: 01 | L93: 0401 | M93: 公用事业单位（事业）
D94: 0108 审计部门 | J94: 04 | K94: 02 | L94: 0402 | M94: 公用事业单位（企业）
D95: 0109 人力资源部门 | J95: 05 | L95: 05 | M95: 国有企业（不含融资平台公司）
D96: 0110 监察部门 | J96: 09 | L96: 09 | M96: 其他
D97: 0111 人口与计划生育部门 | J97: 09 | K97: 01 | L97: 0901 | M97: 企业（不含融资平台公司）（移到第5类）
D98: 0112 商贸部门
D99: 0113 知识产权部门
D100: 0114 工商行政管理部门
D101: 0115 质量技术监督与检验检疫部门
D102: 0116 民族事务管理部门
D103: 0117 宗教事务管理部门
D104: 0118 港澳台侨事务管理部门
D105: 0119 档案部门
D106: 0199 其他一般公共服务部门
D107: 02公共安全部门
D108: 0201 公安部门
D109: 0202 检察部门
D110: 0203 法院部门
D111: 0204 司法部门
D112: 0205 监狱部门
D113: 0206 劳教部门
D114: 0207 国家保密部门
D115: 0299 其他公共安全部门
D116: 03教育部门
D117: 04科学技术部门
D118: 05文化体育与传媒部门
D119: 0501 文化部门
D120: 0502 文物部门
D121: 0503 体育部门
D122: 0504 广播影视部门
D123: 0505 新闻出版部门
D124: 0599 其他文化体育与传媒部门
D125: 06社会保障和就业部门
D126: 0601 人力资源和社会保障部门
D127: 0602 民政部门
D128: 0699 其他社会保障和就业部门
D129: 07医疗卫生部门
D130: 0701 医疗卫生管理部门
D131: 0702 食品和药品监督管理部门
D132: 0799 其他医疗卫生部门
D133: 08节能环保部门
D134: 0801 环境保护管理部门
D135: 0802 能源管理部门
D136: 0899 其他节能环保部门
D137: 09城乡社区部门
D138: 10农林水部门
D139: 1001 农业部门
D140: 1002 林业部门
D141: 1003 水利部门
D142: 1004 扶贫部门
D143: 1099 其他农林水部门
D144: 11交通运输部门
D145: 1101 公路水路运输部门
D146: 1102 铁路运输部门
D147: 1103 邮政部门
D148: 1199 其他交通运输部门
D149: 12资源勘探电力信息等部门
D150: 1201 电力监管部门
D151: 1202 工业和信息产业监管部门
D152: 1203 安全生产监管部门
D153: 1204 国有资产监管部门
D154: 1299 其他资源勘探电力信息等部门
D155: 13商业服务业等部门
D156: 1301 商业流通管理部门
D157: 1302 旅游业管理部门
D158: 1399 其他商业服务业等部门
D159: 14金融监管部门
D160: 15国土资源部门
D161: 16粮油物资管理部门
D162: 17海洋气象等部门
D163: 1701 海洋管理部门
D164: 1702 测绘部门
D165: 1703 地震部门
D166: 1704 气象部门
D167: 99其他

Sheet 附表一
A1: 附表1：
A2: 2023年江门市地方政府新增债务限额分配计划表
J3: 单位：亿元
A4: 县（市、区） | B4: 2023年新增债券限额 | C4: 一般债务 | D4: 一般债务 | F4: 专项债务 | H4: 专项债务
D5: 提前批年初分配 | E5: 本次分配 | G5: 其中：用作项目资本金 | H5: 提前批年初分配 | I5: 提前批调整 | J5: 提前批调整后 | K5: 本次分配
A6: 栏号 | B6: A=B+E | C6: B=C+D | D6: C | E6: D | F6: E=I+J | G6: F | H6: G | I6: H | J6: I=G+H | K6: J
A7: 全市 | B7: =C7+F7 -> 189.4000 | C7: =SUM(C8:C15) -> 1.4000 | D7: =SUM(D8:D15) -> 1.0000 | E7: =SUM(E8:E15) -> 0.4000 | F7: =SUM(F8:F15) -> 188.0000 | G7: =SUM(G8:G15) -> 14.5400 | H7: =SUM(H8:H15) -> 160.0000 | I7: 0.0000 | J7: 160.0000 | K7: 28.0000
A8: 市本级 | B8: 5.7000 | F8: 5.7000 | H8: 3.0000 | I8: =J8-H8 -> 1.2000 | J8: 4.2000 | K8: =F8-J8 -> 1.5000
A9: 蓬江区 | B9: 28.0000 | F9: 28.0000 | G9: 1.3900 | H9: 24.5000 | J9: 24.5000 | K9: 3.5000
A10: 江海区 | B10: 28.0000 | F10: 28.0000 | H10: 22.5000 | J10: 22.5000 | K10: 5.5000
A11: 新会区 | B11: 37.5000 | F11: 37.5000 | G11: 5.5500 | H11: 33.0000 | I11: -2.5000 | J11: 30.5000 | K11: 7.0000
A12: 台山市 | B12: 30.9500 | C12: =D12+E12 -> 0.4500 | D12: 0.2000 | E12: 0.2500 | F12: 30.5000 | G12: 6.0000 | H12: 29.0000 | J12: 29.0000 | K12: 1.5000
A13: 开平市 | B13: 20.1500 | C13: =D13+E13 -> 0.3500 | D13: 0.2000 | E13: 0.1500 | F13: 19.8000 | G13: 1.6000 | H13: 17.5000 | I13: -0.7000 | J13: 16.8000 | K13: 3.0000
A14: 鹤山市 | B14: 24.5000 | F14: 24.5000 | H14: 22.5000 | I14: -2.0000 | J14: 20.5000 | K14: 4.0000
A15: 恩平市 | B15: 14.6000 | C15: 0.6000 | D15: 0.6000 | F15: 14.0000 | H15: 8.0000 | I15: 4.0000 | J15: 12.0000 | K15: 2.0000
